[Event "Titled Tuesday Blitz May 03 Early 2022"]
[White "Abarca Gonzalez, Nicolas"]
[Black "Kadam, Om Manish"]
[WhiteFideId "3409422"]
[BlackFideId "45076294"]
[WhiteElo "2828"]
[BlackElo "2479"]
[Result "1-0"]
[Round "01"]
[TimeControl "180+1"]
[Date "2022.05.03"]
[WhiteClock "0:00:24"]
[BlackClock "0:00:36"]

1. e4 {[%clk 0:02:58]}  c5 {[%clk 0:02:59]} 2. Nf3 {[%clk 0:02:58]}  d6 {[%clk 0:02:59]} 3. Bc4 {[%clk 0:02:58]}  Nf6 {[%clk 0:02:59]} 4. e5 {[%clk 0:02:58]}  dxe5 {[%clk 0:02:59]} 5. Nxe5 {[%clk 0:02:59]}  e6 {[%clk 0:03:00]} 6. Qe2 {[%clk 0:02:59]}  Bd6 {[%clk 0:03:00]} 7. f4 {[%clk 0:02:59]}  O-O {[%clk 0:02:56]} 8. b3 {[%clk 0:02:54]}  b6 {[%clk 0:02:56]} 9. Qf3 {[%clk 0:02:44]}  Qc7 {[%clk 0:02:37]} 10. Bb2 {[%clk 0:02:24]}  Bb7 {[%clk 0:02:37]} 11. Qg3 {[%clk 0:02:24]}  Ne4 {[%clk 0:02:29]} 12. Qh3 {[%clk 0:01:52]}  Nd7 {[%clk 0:02:26]} 13. Nxd7 {[%clk 0:01:42]}  Qxd7 {[%clk 0:02:26]} 14. O-O {[%clk 0:01:42]}  b5 {[%clk 0:02:22]} 15. Bd3 {[%clk 0:01:39]}  f5 {[%clk 0:02:22]} 16. a4 {[%clk 0:01:23]}  a6 {[%clk 0:02:20]} 17. Na3 {[%clk 0:01:17]}  Bc6 {[%clk 0:02:16]} 18. Bxe4 {[%clk 0:01:12]}  Bxe4 {[%clk 0:02:15]} 19. d3 {[%clk 0:01:12]}  Bc6 {[%clk 0:02:12]} 20. Rae1 {[%clk 0:01:05]}  Rae8 {[%clk 0:02:12]} 21. Qe3 {[%clk 0:00:59]}  Qc7 {[%clk 0:02:09]} 22. Be5 {[%clk 0:00:54]}  bxa4 {[%clk 0:01:51]} 23. Bxd6 {[%clk 0:00:49]}  Qxd6 {[%clk 0:01:50]} 24. bxa4 {[%clk 0:00:47]}  Bxa4 {[%clk 0:01:50]} 25. Nc4 {[%clk 0:00:48]}  Qd4 {[%clk 0:01:48]} 26. c3 {[%clk 0:00:41]}  Qxe3+ {[%clk 0:01:46]} 27. Rxe3 {[%clk 0:00:42]}  Bb5 {[%clk 0:01:44]} 28. Ne5 {[%clk 0:00:42]}  Rc8 {[%clk 0:01:32]} 29. c4 {[%clk 0:00:40]}  Bc6 {[%clk 0:01:31]} 30. Ra1 {[%clk 0:00:40]}  Bb7 {[%clk 0:01:29]} 31. Ra5 {[%clk 0:00:39]}  Rfd8 {[%clk 0:01:22]} 32. Re2 {[%clk 0:00:35]}  Rd6 {[%clk 0:01:21]} 33. Rb2 {[%clk 0:00:33]}  Rc7 {[%clk 0:01:21]} 34. Kf2 {[%clk 0:00:31]}  g6 {[%clk 0:01:21]} 35. g3 {[%clk 0:00:30]}  Kg7 {[%clk 0:01:21]} 36. Ke3 {[%clk 0:00:31]}  Kf6 {[%clk 0:01:18]} 37. Ra3 {[%clk 0:00:30]}  g5 {[%clk 0:01:16]} 38. Rab3 {[%clk 0:00:29]}  Bc8 {[%clk 0:01:16]} 39. Rb6 {[%clk 0:00:27]}  Rxb6 {[%clk 0:01:13]} 40. Rxb6 {[%clk 0:00:28]}  a5 {[%clk 0:01:13]} 41. Rb5 {[%clk 0:00:27]}  gxf4+ {[%clk 0:01:00]} 42. gxf4 {[%clk 0:00:28]}  Ra7 {[%clk 0:00:50]} 43. Nc6 {[%clk 0:00:28]}  Ra6 {[%clk 0:00:46]} 44. Nxa5 {[%clk 0:00:28]}  Bd7 {[%clk 0:00:43]} 45. Rxc5 {[%clk 0:00:28]}  Rb6 {[%clk 0:00:42]} 46. Rc7 {[%clk 0:00:27]}  Be8 {[%clk 0:00:42]} 47. c5 {[%clk 0:00:26]}  Ra6 {[%clk 0:00:39]} 48. Nc4 {[%clk 0:00:25]}  Rc6 {[%clk 0:00:39]} 49. Rxc6 {[%clk 0:00:24]}  Bxc6 {[%clk 0:00:40]} 50. Ne5 {[%clk 0:00:25]}  Bd5 {[%clk 0:00:39]} 51. Kd4 {[%clk 0:00:25]}  Ke7 {[%clk 0:00:38]} 52. Kc3 {[%clk 0:00:25]}  Kd8 {[%clk 0:00:38]} 53. Kb4 {[%clk 0:00:25]}  Kc7 {[%clk 0:00:38]} 54. Kb5 {[%clk 0:00:26]}  Bg2 {[%clk 0:00:37]} 55. c6 {[%clk 0:00:25]}  Bd5 {[%clk 0:00:37]} 56. Kc5 {[%clk 0:00:25]}  Bg2 {[%clk 0:00:37]} 57. d4 {[%clk 0:00:24]}  Bh1 {[%clk 0:00:37]} 58. Nf7 {[%clk 0:00:23]}  Bxc6 {[%clk 0:00:37]} 59. Ng5 {[%clk 0:00:23]}  Bd5 {[%clk 0:00:34]} 60. Nxh7 {[%clk 0:00:23]}  Kd7 {[%clk 0:00:35]} 61. Nf6+ {[%clk 0:00:23]}  Ke7 {[%clk 0:00:36]} 62. Nxd5+ {[%clk 0:00:24]} 1-0


[Site "https://www.chess.com"]

[Event "Titled Tuesday Blitz May 03 Early 2022"]
[White "Aldokhin, Ivan"]
[Black "Matveeva, Olga"]
[WhiteFideId "24115720"]
[BlackFideId "24107018"]
[WhiteElo "2231"]
[BlackElo "2083"]
[Result "0-1"]
[Round "01"]
[TimeControl "180+1"]
[Date "2022.05.03"]
[WhiteClock "0:00:04"]
[BlackClock "0:00:25"]

1. e4 {[%clk 0:02:59]}  e6 {[%clk 0:03:00]} 2. d4 {[%clk 0:02:58]}  d5 {[%clk 0:03:00]} 3. Nd2 {[%clk 0:02:58]}  c5 {[%clk 0:02:59]} 4. exd5 {[%clk 0:02:58]}  Qxd5 {[%clk 0:03:00]} 5. Ngf3 {[%clk 0:02:58]}  cxd4 {[%clk 0:03:00]} 6. Bc4 {[%clk 0:02:58]}  Qd6 {[%clk 0:03:00]} 7. O-O {[%clk 0:02:58]}  Nf6 {[%clk 0:03:00]} 8. Qe2 {[%clk 0:02:58]}  Nc6 {[%clk 0:03:00]} 9. Nb3 {[%clk 0:02:57]}  Be7 {[%clk 0:02:50]} 10. Rd1 {[%clk 0:02:57]}  e5 {[%clk 0:02:49]} 11. Bb5 {[%clk 0:02:42]}  Bg4 {[%clk 0:02:36]} 12. Qxe5 {[%clk 0:02:35]}  Qxe5 {[%clk 0:02:31]} 13. Nxe5 {[%clk 0:02:30]}  Bxd1 {[%clk 0:02:30]} 14. Nxc6 {[%clk 0:02:26]}  a6 {[%clk 0:02:11]} 15. Nxe7+ {[%clk 0:02:21]}  Kxe7 {[%clk 0:02:10]} 16. Bd3 {[%clk 0:02:14]}  Bg4 {[%clk 0:02:06]} 17. Nxd4 {[%clk 0:01:57]}  Rhd8 {[%clk 0:02:05]} 18. c3 {[%clk 0:01:48]}  h6 {[%clk 0:02:05]} 19. Bf4 {[%clk 0:01:45]}  Rac8 {[%clk 0:02:01]} 20. f3 {[%clk 0:01:39]}  Bd7 {[%clk 0:01:59]} 21. Kf2 {[%clk 0:01:31]}  Nd5 {[%clk 0:01:58]} 22. Bd2 {[%clk 0:01:16]}  Kf8 {[%clk 0:01:52]} 23. Be4 {[%clk 0:01:13]}  Bc6 {[%clk 0:01:48]} 24. Nxc6 {[%clk 0:01:02]}  bxc6 {[%clk 0:01:49]} 25. Bc1 {[%clk 0:00:43]}  Nf6 {[%clk 0:01:47]} 26. Bf5 {[%clk 0:00:41]}  Rb8 {[%clk 0:01:45]} 27. b3 {[%clk 0:00:38]}  a5 {[%clk 0:01:41]} 28. Bf4 {[%clk 0:00:33]}  Rb7 {[%clk 0:01:38]} 29. Re1 {[%clk 0:00:28]}  Nd5 {[%clk 0:01:34]} 30. Bd2 {[%clk 0:00:24]}  Nb4 {[%clk 0:01:32]} 31. Be3 {[%clk 0:00:20]}  Nd3+ {[%clk 0:01:31]} 32. Bxd3 {[%clk 0:00:18]}  Rxd3 {[%clk 0:01:32]} 33. c4 {[%clk 0:00:13]}  a4 {[%clk 0:01:30]} 34. Ke2 {[%clk 0:00:13]}  Rd8 {[%clk 0:01:28]} 35. b4 {[%clk 0:00:14]}  Kg8 {[%clk 0:01:17]} 36. Bc5 {[%clk 0:00:12]}  Re8+ {[%clk 0:01:15]} 37. Kf2 {[%clk 0:00:13]}  Rxe1 {[%clk 0:01:15]} 38. Kxe1 {[%clk 0:00:14]}  f5 {[%clk 0:01:15]} 39. Kd2 {[%clk 0:00:14]}  Kf7 {[%clk 0:01:15]} 40. Ke3 {[%clk 0:00:14]}  Ke6 {[%clk 0:01:15]} 41. Kd4 {[%clk 0:00:12]}  Rd7+ {[%clk 0:01:15]} 42. Kc3 {[%clk 0:00:11]}  Rd1 {[%clk 0:01:12]} 43. b5 {[%clk 0:00:12]}  cxb5 {[%clk 0:01:11]} 44. cxb5 {[%clk 0:00:13]}  Kd5 {[%clk 0:01:11]} 45. Bf2 {[%clk 0:00:11]}  Rb1 {[%clk 0:01:10]} 46. b6 {[%clk 0:00:11]}  a3 {[%clk 0:01:05]} 47. Bd4 {[%clk 0:00:09]}  Kc6 {[%clk 0:00:54]} 48. Bxg7 {[%clk 0:00:08]}  Kxb6 {[%clk 0:00:48]} 49. Kc2 {[%clk 0:00:08]}  Rh1 {[%clk 0:00:45]} 50. Bxh6 {[%clk 0:00:06]}  Rxh2 {[%clk 0:00:45]} 51. Bc1 {[%clk 0:00:03]}  Rxg2+ {[%clk 0:00:44]} 52. Kb3 {[%clk 0:00:04]}  Rg3 {[%clk 0:00:41]} 53. Kxa3 {[%clk 0:00:04]}  Rxf3+ {[%clk 0:00:41]} 54. Kb4 {[%clk 0:00:05]}  Rd3 {[%clk 0:00:37]} 55. a4 {[%clk 0:00:05]}  Rd4+ {[%clk 0:00:34]} 56. Kb3 {[%clk 0:00:04]}  Re4 {[%clk 0:00:31]} 57. Kc3 {[%clk 0:00:04]}  Kc5 {[%clk 0:00:28]} 58. Kd3 {[%clk 0:00:04]}  Rxa4 {[%clk 0:00:27]} 59. Bg5 {[%clk 0:00:03]}  Kd5 {[%clk 0:00:27]} 60. Ke3 {[%clk 0:00:03]}  Ke5 {[%clk 0:00:27]} 61. Kf2 {[%clk 0:00:04]}  Ke4 {[%clk 0:00:26]} 62. Kf1 {[%clk 0:00:04]}  Kf3 {[%clk 0:00:26]} 63. Ke1 {[%clk 0:00:04]}  f4 {[%clk 0:00:25]} 64. Kf1 {[%clk 0:00:04]}  Ra1# {[%clk 0:00:25]} 0-1


[Site "https://www.chess.com"]

[Event "Titled Tuesday Blitz May 03 Early 2022"]
[White "Alekseenko, Kirill"]
[Black "Prraneeth Vuppala"]
[WhiteFideId "4135539"]
[BlackFideId "46622373"]
[WhiteElo "2682"]
[BlackElo "1958"]
[Result "0-1"]
[Round "01"]
[TimeControl "180+1"]
[Date "2022.05.03"]
[WhiteClock "0:00:05"]
[BlackClock "0:00:12"]

1. e4 {[%clk 0:03:00]}  e5 {[%clk 0:02:57]} 2. Nf3 {[%clk 0:03:00]}  Nc6 {[%clk 0:02:57]} 3. Bb5 {[%clk 0:03:00]}  a6 {[%clk 0:02:58]} 4. Ba4 {[%clk 0:03:00]}  Nf6 {[%clk 0:02:58]} 5. O-O {[%clk 0:03:01]}  b5 {[%clk 0:02:58]} 6. Bb3 {[%clk 0:03:01]}  Bc5 {[%clk 0:02:58]} 7. c3 {[%clk 0:03:00]}  d6 {[%clk 0:02:58]} 8. a4 {[%clk 0:02:55]}  Rb8 {[%clk 0:02:57]} 9. d4 {[%clk 0:02:55]}  Bb6 {[%clk 0:02:58]} 10. a5 {[%clk 0:02:31]}  Ba7 {[%clk 0:02:57]} 11. h3 {[%clk 0:02:21]}  Bb7 {[%clk 0:02:57]} 12. Be3 {[%clk 0:02:17]}  Nxe4 {[%clk 0:02:57]} 13. d5 {[%clk 0:02:08]}  Bxe3 {[%clk 0:02:53]} 14. dxc6 {[%clk 0:02:07]}  Nxf2 {[%clk 0:02:53]} 15. Rxf2 {[%clk 0:01:50]}  Bxf2+ {[%clk 0:02:21]} 16. Kxf2 {[%clk 0:01:51]}  Bxc6 {[%clk 0:02:19]} 17. Nbd2 {[%clk 0:01:50]}  O-O {[%clk 0:02:07]} 18. Kg1 {[%clk 0:01:50]}  Kh8 {[%clk 0:01:59]} 19. Qe2 {[%clk 0:01:41]}  f5 {[%clk 0:01:55]} 20. Rf1 {[%clk 0:01:41]}  h6 {[%clk 0:01:54]} 21. Bc2 {[%clk 0:01:40]}  Bd7 {[%clk 0:01:51]} 22. Qe1 {[%clk 0:01:34]}  e4 {[%clk 0:01:26]} 23. Nh4 {[%clk 0:01:16]}  Qg5 {[%clk 0:01:21]} 24. Rf4 {[%clk 0:01:00]}  Kh7 {[%clk 0:00:57]} 25. Qf2 {[%clk 0:00:58]}  Rbe8 {[%clk 0:00:39]} 26. Nf1 {[%clk 0:00:55]}  g6 {[%clk 0:00:36]} 27. Ne3 {[%clk 0:00:55]}  Be6 {[%clk 0:00:35]} 28. Kh1 {[%clk 0:00:52]}  d5 {[%clk 0:00:34]} 29. b4 {[%clk 0:00:51]}  c6 {[%clk 0:00:34]} 30. g4 {[%clk 0:00:49]}  Qf6 {[%clk 0:00:27]} 31. gxf5 {[%clk 0:00:46]}  g5 {[%clk 0:00:27]} 32. Ng4 {[%clk 0:00:38]}  Qd8 {[%clk 0:00:20]} 33. Ng6 {[%clk 0:00:29]}  gxf4 {[%clk 0:00:20]} 34. Nxf8+ {[%clk 0:00:26]}  Rxf8 {[%clk 0:00:21]} 35. fxe6 {[%clk 0:00:26]}  Qe7 {[%clk 0:00:22]} 36. Qb6 {[%clk 0:00:16]}  Qxe6 {[%clk 0:00:20]} 37. Qxa6 {[%clk 0:00:17]}  f3 {[%clk 0:00:20]} 38. Qa7+ {[%clk 0:00:17]}  Rf7 {[%clk 0:00:20]} 39. Qf2 {[%clk 0:00:17]}  h5 {[%clk 0:00:20]} 40. Qh4 {[%clk 0:00:15]}  Kg6 {[%clk 0:00:19]} 41. Nf2 {[%clk 0:00:14]}  Qf6 {[%clk 0:00:18]} 42. Qg3+ {[%clk 0:00:15]}  Qg5 {[%clk 0:00:19]} 43. Qd6+ {[%clk 0:00:15]}  Rf6 {[%clk 0:00:19]} 44. Qh2 {[%clk 0:00:15]}  Qc1+ {[%clk 0:00:19]} 45. Qg1+ {[%clk 0:00:16]}  Qxg1+ {[%clk 0:00:18]} 46. Kxg1 {[%clk 0:00:16]}  Kf5 {[%clk 0:00:18]} 47. Nd1 {[%clk 0:00:17]}  Kf4 {[%clk 0:00:18]} 48. Kf2 {[%clk 0:00:17]}  Rg6 {[%clk 0:00:18]} 49. Ne3 {[%clk 0:00:18]}  h4 {[%clk 0:00:16]} 50. Bb3 {[%clk 0:00:17]}  Rg8 {[%clk 0:00:16]} 51. Bc2 {[%clk 0:00:16]}  Rg3 {[%clk 0:00:16]} 52. a6 {[%clk 0:00:13]}  Rg8 {[%clk 0:00:16]} 53. c4 {[%clk 0:00:13]}  dxc4 {[%clk 0:00:13]} 54. Nd1 {[%clk 0:00:05]}  Rg2+ {[%clk 0:00:12]} 55. Ke1 {[%clk 0:00:05]}  Rxc2 {[%clk 0:00:12]} 0-1


[Site "https://www.chess.com"]

[Event "Titled Tuesday Blitz May 03 Early 2022"]
[White "Ansh M Shah"]
[Black "Horobetz, Graham"]
[WhiteFideId "25033379"]
[BlackFideId "2047322"]
[WhiteElo "1819"]
[BlackElo "2638"]
[Result "0-1"]
[Round "01"]
[TimeControl "180+1"]
[Date "2022.05.03"]
[WhiteClock "0:00:02"]
[BlackClock "0:00:24"]

1. d4 {[%clk 0:02:59]}  Nf6 {[%clk 0:02:59]} 2. c4 {[%clk 0:02:58]}  e6 {[%clk 0:02:59]} 3. Nf3 {[%clk 0:02:56]}  d5 {[%clk 0:02:58]} 4. g3 {[%clk 0:02:56]}  dxc4 {[%clk 0:02:57]} 5. Bg2 {[%clk 0:02:54]}  c5 {[%clk 0:02:54]} 6. O-O {[%clk 0:02:53]}  cxd4 {[%clk 0:02:50]} 7. Nxd4 {[%clk 0:02:52]}  Nbd7 {[%clk 0:02:42]} 8. Nb5 {[%clk 0:01:54]}  Nc5 {[%clk 0:02:20]} 9. Bf4 {[%clk 0:01:35]}  Na6 {[%clk 0:01:56]} 10. Qxd8+ {[%clk 0:01:06]}  Kxd8 {[%clk 0:01:56]} 11. Rd1+ {[%clk 0:00:48]}  Nd7 {[%clk 0:01:56]} 12. Nd2 {[%clk 0:00:32]}  f6 {[%clk 0:01:56]} 13. Bd6 {[%clk 0:00:28]}  c3 {[%clk 0:01:10]} 14. bxc3 {[%clk 0:00:24]}  Nac5 {[%clk 0:01:07]} 15. Nb3 {[%clk 0:00:16]}  Bxd6 {[%clk 0:01:03]} 16. Nxd6 {[%clk 0:00:13]}  Ke7 {[%clk 0:01:04]} 17. Nc4 {[%clk 0:00:01]}  Rd8 {[%clk 0:00:44]} 18. Nb2 {[%clk 0:00:01]}  Rb8 {[%clk 0:00:39]} 19. Nd3 {[%clk 0:00:01]}  Nxd3 {[%clk 0:00:35]} 20. Rxd3 {[%clk 0:00:02]}  Ne5 {[%clk 0:00:33]} 21. Rxd8 {[%clk 0:00:02]}  Kxd8 {[%clk 0:00:34]} 22. Rd1+ {[%clk 0:00:03]}  Ke7 {[%clk 0:00:35]} 23. f4 {[%clk 0:00:03]}  Nd7 {[%clk 0:00:34]} 24. e4 {[%clk 0:00:03]}  b6 {[%clk 0:00:33]} 25. Kf2 {[%clk 0:00:02]}  Bb7 {[%clk 0:00:34]} 26. Ke3 {[%clk 0:00:03]}  Rc8 {[%clk 0:00:34]} 27. Rc1 {[%clk 0:00:03]}  e5 {[%clk 0:00:32]} 28. Bh3 {[%clk 0:00:03]}  exf4+ {[%clk 0:00:32]} 29. gxf4 {[%clk 0:00:04]}  Rc4 {[%clk 0:00:32]} 30. Bxd7 {[%clk 0:00:03]}  Rxe4+ {[%clk 0:00:31]} 31. Kd3 {[%clk 0:00:03]}  Kxd7 {[%clk 0:00:30]} 32. c4 {[%clk 0:00:03]}  Rxf4 {[%clk 0:00:28]} 33. c5 {[%clk 0:00:03]}  Rf2 {[%clk 0:00:24]} 34. cxb6 {[%clk 0:00:02]}  axb6 {[%clk 0:00:25]} 35. Rc2 {[%clk 0:00:02]}  Be4+ {[%clk 0:00:24]} 0-1


[Site "https://www.chess.com"]

[Event "Titled Tuesday Blitz May 03 Early 2022"]
[White "Aradhya, Garg"]
[Black "Khamdamova, Afruza"]
[WhiteFideId "25006746"]
[BlackFideId "14210444"]
[WhiteElo "2169"]
[BlackElo "1660"]
[Result "1-0"]
[Round "01"]
[TimeControl "180+1"]
[Date "2022.05.03"]
[WhiteClock "0:00:31"]
[BlackClock "0:02:01"]

1. d4 {[%clk 0:02:57]}  Nf6 {[%clk 0:02:59]} 2. Nf3 {[%clk 0:02:57]}  b6 {[%clk 0:02:59]} 3. g3 {[%clk 0:02:54]}  Bb7 {[%clk 0:02:59]} 4. Bg2 {[%clk 0:02:54]}  g6 {[%clk 0:03:00]} 5. O-O {[%clk 0:02:54]}  Bg7 {[%clk 0:03:00]} 6. c4 {[%clk 0:02:55]}  d6 {[%clk 0:03:00]} 7. Nc3 {[%clk 0:02:55]}  O-O {[%clk 0:03:00]} 8. d5 {[%clk 0:02:50]}  c6 {[%clk 0:02:57]} 9. Nd4 {[%clk 0:02:44]}  cxd5 {[%clk 0:02:57]} 10. cxd5 {[%clk 0:02:45]}  Na6 {[%clk 0:02:51]} 11. Nc6 {[%clk 0:02:20]}  Qd7 {[%clk 0:02:49]} 12. Bg5 {[%clk 0:02:17]}  h6 {[%clk 0:02:45]} 13. Bxf6 {[%clk 0:02:08]}  Bxf6 {[%clk 0:02:45]} 14. Qd2 {[%clk 0:02:09]}  Bg7 {[%clk 0:02:45]} 15. Rac1 {[%clk 0:02:03]}  e6 {[%clk 0:02:34]} 16. Rfd1 {[%clk 0:02:00]}  exd5 {[%clk 0:02:27]} 17. Nxd5 {[%clk 0:01:58]}  Kh8 {[%clk 0:02:20]} 18. Nd4 {[%clk 0:01:02]}  Rac8 {[%clk 0:02:17]} 19. h4 {[%clk 0:00:54]}  h5 {[%clk 0:02:16]} 20. e3 {[%clk 0:00:42]}  Rxc1 {[%clk 0:02:12]} 21. Rxc1 {[%clk 0:00:42]}  Rc8 {[%clk 0:02:11]} 22. Kh2 {[%clk 0:00:40]}  Rxc1 {[%clk 0:02:08]} 23. Qxc1 {[%clk 0:00:39]}  Bxd4 {[%clk 0:02:01]} 24. exd4 {[%clk 0:00:33]}  Qf5 {[%clk 0:02:01]} 25. Qh6+ {[%clk 0:00:31]} 1-0


[Site "https://www.chess.com"]

[Event "Titled Tuesday Blitz May 03 Early 2022"]
[White "Bach, Ngoc Thuy Duong"]
[Black "Ismagambetov, Anuar"]
[WhiteFideId "12408956"]
[BlackFideId "13701525"]
[WhiteElo "2446"]
[BlackElo "2780"]
[Result "0-1"]
[Round "01"]
[TimeControl "180+1"]
[Date "2022.05.03"]
[WhiteClock "0:00:05"]
[BlackClock "0:00:18"]

1. d4 {[%clk 0:02:55]}  Nf6 {[%clk 0:02:59]} 2. c4 {[%clk 0:02:56]}  e6 {[%clk 0:02:59]} 3. Nc3 {[%clk 0:02:56]}  Bb4 {[%clk 0:02:57]} 4. Qc2 {[%clk 0:02:56]}  c5 {[%clk 0:02:56]} 5. dxc5 {[%clk 0:02:55]}  Bxc5 {[%clk 0:02:57]} 6. Nf3 {[%clk 0:02:55]}  Qb6 {[%clk 0:02:57]} 7. e3 {[%clk 0:02:52]}  Qc7 {[%clk 0:02:57]} 8. Be2 {[%clk 0:02:47]}  a6 {[%clk 0:02:56]} 9. O-O {[%clk 0:02:47]}  b6 {[%clk 0:02:56]} 10. e4 {[%clk 0:02:47]}  Be7 {[%clk 0:02:52]} 11. Rd1 {[%clk 0:02:45]}  d6 {[%clk 0:02:51]} 12. Bf4 {[%clk 0:02:39]}  Nbd7 {[%clk 0:02:44]} 13. a3 {[%clk 0:02:35]}  Bb7 {[%clk 0:02:44]} 14. Rac1 {[%clk 0:02:34]}  Rc8 {[%clk 0:02:42]} 15. h3 {[%clk 0:02:31]}  O-O {[%clk 0:02:42]} 16. b4 {[%clk 0:02:25]}  Rfd8 {[%clk 0:02:38]} 17. Bh2 {[%clk 0:02:18]}  Qb8 {[%clk 0:02:37]} 18. Bd3 {[%clk 0:02:04]}  Nf8 {[%clk 0:02:19]} 19. Qe2 {[%clk 0:01:55]}  Ng6 {[%clk 0:02:16]} 20. Qe3 {[%clk 0:01:49]}  Bc6 {[%clk 0:02:05]} 21. Be2 {[%clk 0:01:45]}  Nd7 {[%clk 0:02:01]} 22. Nd4 {[%clk 0:01:42]}  Ba8 {[%clk 0:01:59]} 23. f4 {[%clk 0:01:39]}  Ngf8 {[%clk 0:01:46]} 24. Kh1 {[%clk 0:01:31]}  Bb7 {[%clk 0:01:43]} 25. Nf3 {[%clk 0:01:24]}  Qa8 {[%clk 0:01:41]} 26. Bd3 {[%clk 0:00:56]}  Nf6 {[%clk 0:01:37]} 27. Re1 {[%clk 0:00:54]}  Re8 {[%clk 0:01:36]} 28. Qxb6 {[%clk 0:00:53]}  d5 {[%clk 0:01:15]} 29. cxd5 {[%clk 0:00:29]}  exd5 {[%clk 0:01:16]} 30. exd5 {[%clk 0:00:23]}  Bd8 {[%clk 0:01:13]} 31. Qd4 {[%clk 0:00:21]}  Rxe1+ {[%clk 0:01:12]} 32. Rxe1 {[%clk 0:00:21]}  Nxd5 {[%clk 0:01:12]} 33. Nxd5 {[%clk 0:00:20]}  Bxd5 {[%clk 0:01:13]} 34. Be4 {[%clk 0:00:19]}  Bxe4 {[%clk 0:01:13]} 35. Qxe4 {[%clk 0:00:19]}  Qa7 {[%clk 0:01:13]} 36. Bg1 {[%clk 0:00:19]}  Qc7 {[%clk 0:01:11]} 37. f5 {[%clk 0:00:19]}  Bf6 {[%clk 0:01:07]} 38. Bc5 {[%clk 0:00:18]}  h6 {[%clk 0:01:04]} 39. Qd5 {[%clk 0:00:16]}  Qg3 {[%clk 0:01:03]} 40. Bd6 {[%clk 0:00:15]}  Qf2 {[%clk 0:01:00]} 41. Bc5 {[%clk 0:00:15]}  Qb2 {[%clk 0:00:59]} 42. a4 {[%clk 0:00:14]}  Rd8 {[%clk 0:00:57]} 43. Qc4 {[%clk 0:00:13]}  Ra8 {[%clk 0:00:49]} 44. Qc1 {[%clk 0:00:12]}  Qb3 {[%clk 0:00:48]} 45. Qd1 {[%clk 0:00:12]}  Qc4 {[%clk 0:00:47]} 46. Qe2 {[%clk 0:00:12]}  Qb3 {[%clk 0:00:45]} 47. a5 {[%clk 0:00:12]}  Nd7 {[%clk 0:00:41]} 48. Qd1 {[%clk 0:00:12]}  Qxd1 {[%clk 0:00:38]} 49. Rxd1 {[%clk 0:00:13]}  Nxc5 {[%clk 0:00:38]} 50. bxc5 {[%clk 0:00:14]}  Rc8 {[%clk 0:00:38]} 51. Rc1 {[%clk 0:00:14]}  Kf8 {[%clk 0:00:38]} 52. Nd2 {[%clk 0:00:13]}  Bg5 {[%clk 0:00:38]} 53. Rc2 {[%clk 0:00:13]}  Bxd2 {[%clk 0:00:38]} 54. Rxd2 {[%clk 0:00:14]}  Rxc5 {[%clk 0:00:39]} 55. f6 {[%clk 0:00:13]}  gxf6 {[%clk 0:00:36]} 56. Rd6 {[%clk 0:00:13]}  Rxa5 {[%clk 0:00:36]} 57. Rxf6 {[%clk 0:00:13]}  Kg7 {[%clk 0:00:37]} 58. Rb6 {[%clk 0:00:13]}  Ra2 {[%clk 0:00:38]} 59. Rb7 {[%clk 0:00:12]}  h5 {[%clk 0:00:37]} 60. Ra7 {[%clk 0:00:12]}  h4 {[%clk 0:00:37]} 61. Kg1 {[%clk 0:00:12]}  a5 {[%clk 0:00:37]} 62. Ra6 {[%clk 0:00:11]}  f6 {[%clk 0:00:37]} 63. Ra7+ {[%clk 0:00:10]}  Kg6 {[%clk 0:00:38]} 64. Ra8 {[%clk 0:00:11]}  a4 {[%clk 0:00:37]} 65. Kh2 {[%clk 0:00:11]}  Kg5 {[%clk 0:00:35]} 66. Ra5+ {[%clk 0:00:11]}  f5 {[%clk 0:00:33]} 67. Ra8 {[%clk 0:00:11]}  a3 {[%clk 0:00:33]} 68. Ra4 {[%clk 0:00:10]}  f4 {[%clk 0:00:33]} 69. Kg1 {[%clk 0:00:10]}  Kf5 {[%clk 0:00:33]} 70. Kf1 {[%clk 0:00:09]}  Ke5 {[%clk 0:00:33]} 71. Kg1 {[%clk 0:00:09]}  Kd5 {[%clk 0:00:30]} 72. Ra8 {[%clk 0:00:09]}  Kc4 {[%clk 0:00:29]} 73. Rc8+ {[%clk 0:00:09]}  Kd3 {[%clk 0:00:28]} 74. Rd8+ {[%clk 0:00:09]}  Ke3 {[%clk 0:00:28]} 75. Re8+ {[%clk 0:00:09]}  Kd2 {[%clk 0:00:27]} 76. Rd8+ {[%clk 0:00:10]}  Ke1 {[%clk 0:00:27]} 77. Ra8 {[%clk 0:00:10]}  Ra1 {[%clk 0:00:23]} 78. Ra4 {[%clk 0:00:09]}  a2 {[%clk 0:00:19]} 79. Kh2 {[%clk 0:00:08]}  Ke2 {[%clk 0:00:18]} 80. Ra5 {[%clk 0:00:07]}  Ke3 {[%clk 0:00:16]} 81. Ra7 {[%clk 0:00:07]}  Kd4 {[%clk 0:00:16]} 82. Rd7+ {[%clk 0:00:06]}  Ke5 {[%clk 0:00:16]} 83. Re7+ {[%clk 0:00:06]}  Kf6 {[%clk 0:00:16]} 84. Ra7 {[%clk 0:00:07]}  Kf5 {[%clk 0:00:17]} 85. Rf7+ {[%clk 0:00:06]}  Ke4 {[%clk 0:00:16]} 86. Re7+ {[%clk 0:00:06]}  Kd3 {[%clk 0:00:17]} 87. Rd7+ {[%clk 0:00:07]}  Kc4 {[%clk 0:00:17]} 88. Rc7+ {[%clk 0:00:07]}  Kb5 {[%clk 0:00:18]} 89. Ra7 {[%clk 0:00:07]}  Kb4 {[%clk 0:00:18]} 90. Rb7+ {[%clk 0:00:07]}  Kc4 {[%clk 0:00:18]} 91. Ra7 {[%clk 0:00:07]}  Kd5 {[%clk 0:00:18]} 92. Rd7+ {[%clk 0:00:07]}  Kc5 {[%clk 0:00:18]} 93. Ra7 {[%clk 0:00:08]}  Kb6 {[%clk 0:00:18]} 94. Ra8 {[%clk 0:00:08]}  Kb7 {[%clk 0:00:18]} 95. Ra4 {[%clk 0:00:08]}  Kc6 {[%clk 0:00:18]} 96. Ra8 {[%clk 0:00:08]}  Kb6 {[%clk 0:00:18]} 97. Ra3 {[%clk 0:00:07]}  Kb5 {[%clk 0:00:19]} 98. Ra8 {[%clk 0:00:08]}  Kb4 {[%clk 0:00:19]} 99. Rb8+ {[%clk 0:00:08]}  Kc3 {[%clk 0:00:19]} 100. Rc8+ {[%clk 0:00:08]}  Kd2 {[%clk 0:00:19]} 101. Rd8+ {[%clk 0:00:08]}  Ke1 {[%clk 0:00:20]} 102. Re8+ {[%clk 0:00:08]}  Kf1 {[%clk 0:00:20]} 103. Ra8 {[%clk 0:00:08]}  Re1 {[%clk 0:00:21]} 104. Rxa2 {[%clk 0:00:08]}  Re2 {[%clk 0:00:21]} 105. Ra1+ {[%clk 0:00:07]}  Kf2 {[%clk 0:00:22]} 106. Ra3 {[%clk 0:00:07]}  Re3 {[%clk 0:00:20]} 107. Ra2+ {[%clk 0:00:08]}  Kf1 {[%clk 0:00:20]} 108. Ra1+ {[%clk 0:00:08]}  Kf2 {[%clk 0:00:20]} 109. Ra2+ {[%clk 0:00:08]}  Re2 {[%clk 0:00:21]} 110. Ra3 {[%clk 0:00:08]}  Kf1 {[%clk 0:00:18]} 111. Rf3+ {[%clk 0:00:07]}  Rf2 {[%clk 0:00:18]} 112. Ra3 {[%clk 0:00:06]}  Rxg2+ {[%clk 0:00:18]} 113. Kh1 {[%clk 0:00:07]}  Rg3 {[%clk 0:00:18]} 114. Rxg3 {[%clk 0:00:05]}  hxg3 {[%clk 0:00:18]} 0-1


[Site "https://www.chess.com"]